Cogmind - Beta 15 @@@ ROGUE MODE // 2025.09.25 @ 17:58:28 Player: Tereza Result: Destroyed by 8R-AWN with 8R-AWN's Boregun Performance ------------- Evolutions (1) 500 Regions Visited (4) 800 Robots Destroyed (67) 335 Value Destroyed (1596) 1596 Prototype IDs (2) 40 Alien Tech Used (0) 0 Bonus (4) 4 TOTAL SCORE: 3275 Bonus ------- High Alert Combat Kills 4 Cogmind --------- Core Integrity 0/400 Matter 300/300 Energy 100/100 System Corruption 5% Temperature Cool (0) Movement Treading (400) Ox3 Location -9/Exiles Parts ------- > --- POWER (1) -------- (None) > --- PROPULSION (3) --- Light Treads > --- UTILITY (3) ------ Huge Storage Unit > --- WEAPON (2) ------- (None) > --- INVENTORY (25) --- High-capacity Storage Unit Large Battery (200) High-capacity Matter Pod (200) Signal Interpreter Salvage Targeting Computer Hardened Medium Armor Plating Hacking Suite Advanced Beam Cannon Autogun Datajack Peak State ------------ > --- POWER ------------ Improved Ion Engine > --- PROPULSION ------- Light Treads Light Treads Light Treads > --- UTILITY ---------- Improved Heat Sink Huge Storage Unit Utility Shielding > --- WEAPON ----------- Advanced Beam Cannon Autogun > --- INVENTORY -------- Improved Ion Engine Light Fission Core Light Fission Core Light Treads Light Treads Light Treads Light Treads Light Treads Light Treads Cooling System High-capacity Storage Unit Large Battery High-capacity Matter Pod Signal Interpreter Salvage Targeting Computer Improved Propulsion Shielding Hardened Medium Armor Plating Hacking Suite Advanced Beam Cannon Advanced Beam Cannon Advanced Beam Cannon Advanced Beam Cannon Shock Bomb Launcher Grenade Launcher Datajack [Rating: 20] Favorites ----------- Power Light Ion Engine Engine Light Ion Engine Propulsion Light Treads Treads Light Treads Utility Huge Storage Unit Device Heat Sink Storage Huge Storage Unit Protection Utility Shielding Weapon Advanced Beam Cannon Energy Gun Improved EM Shotgun Energy Cannon Advanced Beam Cannon Ballistic Gun Autogun Launcher Grenade Launcher Build | -11 -10 -9 -9 -9 ------- Run | Yrd Mat Mat Min Exi Slots Evolved 2 | . . 2 . . Power . | . . . . . Propulsion 1 | . . 1 . . Utility 1 | . . 1 . . Weapon . | . . . . . Parts Attached 48 | 7 8 20 . 13 Power 4 | 1 . 2 . 1 Engine 4 | 1 . 2 . 1 Core . | . . . . . Reactor . | . . . . . Propulsion 18 | 2 . 11 . 5 Treads 18 | 2 . 11 . 5 Leg . | . . . . . Wheel . | . . . . . Hover . | . . . . . Flight . | . . . . . Utility 14 | 2 4 5 . 3 Device 7 | 1 1 4 . 1 Storage 3 | 1 2 . . . Processor . | . . . . . Hackware . | . . . . . Protection 4 | . 1 1 . 2 Artifact . | . . . . . Weapon 12 | 2 4 2 . 4 Energy Gun 1 | . 1 . . . Energy Cannon 5 | . 2 1 . 2 Ballistic Gun 4 | 2 1 1 . . Ballistic Cannon . | . . . . . Launcher 2 | . . . . 2 Special Weapon . | . . . . . Impact Weapon . | . . . . . Slashing Weapon . | . . . . . Piercing Weapon . | . . . . . Special Melee Weapon . | . . . . . Unidentified Prototypes 2 | . 2 . . . Parts Lost 27 | . 1 6 . 20 Power 4 | . . 2 . 2 Propulsion 9 | . . 1 . 8 Utility 7 | . 1 2 . 4 Weapon 7 | . . 1 . 6 Highest Loss Streak 9 | . 1 2 . 9 To Critical Strikes 7 | . . . . 7 Average Backups 21 | 2 19 24 25 20 Power 1 | . 1 . 1 1 Propulsion 3 | 1 1 5 6 4 Utility 8 | . 7 9 10 8 Weapon 7 | . 8 7 7 4 Tool/Special . | . . . . . Unused Backups 26 | . 5 10 . 11 Power 2 | . . . . 2 Propulsion 2 | . 2 . . . Utility 11 | . 2 3 . 6 Weapon 10 | . 1 7 . 2 Tool/Special 1 | . . . . 1 Average Slot Usage (%) 96 | . 98 97 100 90 Engine 11 | . 14 10 11 8 Treads 30 | . 27 32 33 31 Device 14 | . 9 18 11 9 Storage 12 | . 15 11 11 11 Protection 2 | . 1 . 11 8 Energy Cannon 9 | . 6 10 11 12 Ballistic Gun 14 | . 21 10 11 6 Peak Build Rating 20 | 7 12 19 19 20 Average Rating 13 | 4 10 16 19 17 On Entrance 11 | . 7 12 19 19 Naked Turns . | . . . . . Heaviest Build 126 | 13 126 96 96 106 Greatest Support 60 | 40 40 60 60 60 Greatest Overweight (x) 5 | . 3 2 1 5 Average Overweight (x) 1 | . 1 1 1 1 Largest Inventory Capacity 25 | 8 25 25 25 25 Average Capacity 24 | 7 23 25 25 25 Most Carried 25 | 5 25 25 25 25 Average Carried 21 | 3 19 24 25 20 Final Capacity 25 | 8 25 25 25 25 Final Carried 25 | 4 25 25 25 10 Class Distribution -------------------- 55% | Mutant 44% | Scavenger-Mutant Dominant Class ---------------- Mutant | -10/Materials Scavenger-Mutant | -9/Materials Scavenger-Mutant | -9/Mines Scavenger-Mutant | -9/Exiles Resources | -11 -10 -9 -9 -9 ----------- Run | Yrd Mat Mat Min Exi Matter Collected 1502 | 263 566 648 . 25 Remotely . | . . . . . Salvage Created 2339 | 29 521 1723 . 66 Parts 160 | 4 41 115 . . Haulers Intercepted 6 | . 1 5 . . Recyclers Shooed 2 | . . 2 . . Parts Field Recycled . | . . . . . Retrieved Matter . | . . . . . Parts Self-Destructed . | . . . . . Prevented . | . . . . . Kills | -11 -10 -9 -9 -9 ------- Run | Yrd Mat Mat Min Exi Combat Hostiles Destroyed 52 | . 12 34 . 6 Guns 20 | . 11 9 . . Cannons 28 | . 1 23 . 4 AOE 2 | . . . . 2 Classes Destroyed 14 | 1 7 5 . 1 Worker 3 | . 2 1 . . Builder 1 | . . 1 . . Tunneler 1 | 1 . . . . Hauler 6 | . 1 5 . . Recycler 1 | . . 1 . . Operator 3 | . 2 1 . . Watcher 6 | . 2 4 . . Swarmer 13 | . 6 7 . . Grunt 20 | . 5 15 . . Brawler 1 | . . 1 . . Duelist 1 | . . 1 . . Sentry 10 | . . 10 . . Subdweller 1 | . 1 . . . Assembled 6 | . . . . 6 Best Kill Streak 5 | 1 5 5 . 5 Combat Bots Only 5 | . 3 4 . 5 Max Kills in Single Turn 1 | 1 1 1 . 1 Gunslinging . | . . . . . Exploded 1 | . . . . 1 Melee . | . . . . . Uniques/NPCs Destroyed . | . . . . . Combat | -11 -10 -9 -9 -9 -------- Run | Yrd Mat Mat Min Exi Hostile Shots Fired 385 | . 54 138 . 193 Missed 104 | . 12 38 . 54 Hits 281 | . 42 100 . 139 Melee 8 | . . 3 . 5 Projectile 273 | . 42 97 . 134 Critical Strikes 51 | . 1 5 . 45 Actively Blocked 4 | . . . . 4 Damage Taken 4396 | . 441 1313 . 2642 Core 536 | . 116 81 . 339 Absorbed by Shields . | . . . . . Redirected to Shielding 104 | . . . . 104 Regen/Repaired (Parts) 410 | . 100 310 . . Core Remaining (%) 76 | 100 53 . . . Volleys Fired 217 | 4 60 116 . 37 Largest 2 | 2 2 2 . 2 Hottest 136 | 40 88 91 . 136 Shots Fired 430 | 8 119 232 . 71 Gun 236 | 8 111 116 . 1 Cannon 186 | . 8 116 . 62 Launcher 8 | . . . . 8 Special . | . . . . . Kinetic 236 | 8 111 116 . 1 Thermal 186 | . 8 116 . 62 Explosive 4 | . . . . 4 Electromagnetic 4 | . . . . 4 Robot Hit Streak 16 | 1 9 16 . 9 Robot Miss Streak 4 | 4 4 4 . 2 Penetration Max . | . . . . . Secondary Targets 2 | . 2 . . . Max Gunslinging Chain 1 | . 1 . . . Shots Hit Robots 269 | 2 66 155 . 46 Core Hits 104 | 1 30 55 . 18 Critical Kills 2 | . . 2 . . Critical Parts Destroyed 1 | . 1 . . . Critical Strikes 3 | . 1 2 . . Meltdown 2 | . . 2 . . Destroy 1 | . 1 . . . Melee Attacks . | . . . . . Impact . | . . . . . Slashing . | . . . . . Piercing . | . . . . . Sneak Attacks . | . . . . . Combat Hostiles . | . . . . . Follow-up Attacks . | . . . . . Damage Inflicted 4294 | 22 792 3013 . 467 Guns 1811 | 22 673 1116 . . Cannons 2196 | . 110 1887 . 199 Explosions 141 | . . . . 141 Melee . | . . . . . Ramming 146 | . 9 10 . 127 Kinetic 1811 | 22 673 1116 . . Thermal 2196 | . 110 1887 . 199 Explosive 100 | . . . . 100 Electromagnetic 41 | . . . . 41 Impact . | . . . . . Slashing . | . . . . . Piercing . | . . . . . Highest Corruption 5 | . 1 . . 5 Average Corruption 1 | . 1 . . 4 Corruption Purged . | . . . . . Corruption Blocked . | . . . . . Effects 11 | . 7 . . 4 Message Errors 2 | . 1 . . 1 Matter Fused 4 | . 3 . . 1 Energy Discharges 2 | . 1 . . 1 Data Loss (major) 2 | . 1 . . 1 Alerts 1 | . 1 . . . Overload Shots . | . . . . . Overflow Damage 5 | . 3 2 . . Projectiles 2 | . . 2 . . Explosions . | . . . . . Melee 3 | . 3 . . . Knockbacks 1 | . . 1 . . Impact 1 | . . 1 . . Kinetic . | . . . . . Secondary . | . . . . . Self-Inflicted Damage 18 | . . . . 18 Shots 1 | . . . . 1 Rammed 32 | . 2 1 . 29 Targets Rammed 34 | . 2 3 . 29 Kicked . | . . . . . Crushed 2 | . . 2 . . Highest Temperature 163 | . 38 163 . 66 Average Temperature 25 | . 13 31 . 18 Received Heat Transfer 643 | . 156 447 . 40 Siege Activations . | . . . . . Martial Activations . | . . . . . Shielding Activations . | . . . . . Robots Disrupted . | . . . . . Combat Hostiles . | . . . . . Robots Corrupted . | . . . . . Combat Hostiles . | . . . . . Parts Fried . | . . . . . Impact Corruptions 1 | . 1 . . . Robots Melted 2 | . . 2 . . Combat Hostiles 2 | . . 2 . . Parts Melted 5 | . . 5 . . Heat Transferred 3931 | . 185 3182 . 564 Parts Sabotaged . | . . . . . Parts Stolen . | . . . . . Parts Stripped . | . . . . . Power Chain Reactions . | . . . . . Alert | -11 -10 -9 -9 -9 ------- Run | Yrd Mat Mat Min Exi Maximum Alert Level 2 | . . 2 . . Low Security (%) 74 | 100 100 54 100 . Level 1 20 | . . 36 . . Level 2 4 | . . 8 . . Level 3 . | . . . . . Level 4 . | . . . . . Level 5 . | . . . . . High Security . | . . . . . Max Security . | . . . . . Peak Influence 427 | 5 92 427 129 . Initial 129 | . . . 129 . Average 97 | . 19 159 122 . Influence Increases 1418 | 5 356 1057 . . Destroy 0b10 Robot/C 900 | . 220 680 . . Destroy 0b10 Robot/NC 105 | 5 35 65 . . Destroy Leader 274 | . 56 218 . . Successful Hack 68 | . 30 38 . . Disable Machine 15 | . 15 . . . Destroy Structure 11 | . . 11 . . Lose Combat Pursuer 45 | . . 45 . . Influence Decreases 1418 | 5 356 726 222 109 Entered New Map 311 | . . . 202 109 Time Decay 897 | 5 346 526 20 . Lost Part 60 | . 10 50 . . Purge Threat 150 | . . 150 . . Squads Dispatched 7 | . 2 5 . . Investigation 3 | . . 3 . . Extermination . | . . . . . Reinforcement 4 | . 2 2 . . Assault . | . . . . . Garrison . | . . . . . Intercept . | . . . . . Searches Triggered . | . . . . . Construction Impeded . | . . . . . Haulers Reinforced . | . . . . . Active Scanning Responses . | . . . . . Cargo Convoy Interrupts . | . . . . . Stealth | -11 -10 -9 -9 -9 --------- Run | Yrd Mat Mat Min Exi Distress Signals 4 | . 2 2 . . Communications Jammed . | . . . . . Distress Signals . | . . . . . Times Spotted 74 | . 21 46 . 7 Peak Tracking Total 9 | . 4 5 . 9 Tactical Retreats 3 | . . 2 . 1 Traps | -11 -10 -9 -9 -9 ------- Run | Yrd Mat Mat Min Exi Traps Triggered 5 | . 1 4 . . Indirectly . | . . . . . Trap Hack Attempts . | . . . . . Triggered . | . . . . . Disarmed . | . . . . . Reprogrammed . | . . . . . Reused . | . . . . . Traps Extracted . | . . . . . Installed . | . . . . . Triggered . | . . . . . Machines | -11 -10 -9 -9 -9 ---------- Run | Yrd Mat Mat Min Exi Machines Disabled 5 | . 1 . . 4 Max in Single Turn 1 | . 1 . . 1 Machines Repaired . | . . . . . Machines Dismantled . | . . . . . Machines Sabotaged . | . . . . . Overloaded Fab Kills . | . . . . . Hacking | -11 -10 -9 -9 -9 --------- Run | Yrd Mat Mat Min Exi Machines Accessed 20 | . 7 12 . 1 Terminals 15 | . 6 9 . . Fabricators . | . . . . . Repair Stations 3 | . 1 2 . . Recycling Units 1 | . . 1 . . Scanalyzers . | . . . . . Garrison Access . | . . . . . Total Hacks 63 | . 22 37 . 4 Successful 31 | . 10 17 . 4 Failed 31 | . 11 20 . . Catastrophic 8 | . 1 7 . . Database Lockouts 1 | . 1 . . . Manual 25 | . 11 14 . . Terminals 45 | . 19 26 . . Fabricators . | . . . . . Repair Stations 13 | . 3 10 . . Recycling Units 1 | . . 1 . . Scanalyzers . | . . . . . Garrison Access . | . . . . . Terminal Hacks 20 | . 8 8 . 4 Record 4 | . . . . 4 Robot Analysis 8 | . 4 4 . . Alert Level 2 | . 1 1 . . Unreport Threat 1 | . . 1 . . Locate Traps 4 | . 2 2 . . Hauler Manifests 1 | . 1 . . . Fabricator Hacks . | . . . . . Repair Station Hacks 10 | . 2 8 . . Scan Component 5 | . 1 4 . . Repair 5 | . 1 4 . . Recycling Unit Hacks 1 | . . 1 . . Report Inventory 1 | . . 1 . . Scanalyzer . | . . . . . Garrison Access Hacks . | . . . . . Unauthorized Hacks . | . . . . . Terminals . | . . . . . Fabricators . | . . . . . Repair Stations . | . . . . . Recycling Units . | . . . . . Scanalyzers . | . . . . . Garrison Access . | . . . . . Data Cores Recovered . | . . . . . Used . | . . . . . Hacking Detections 17 | . 6 11 . . Full Trace Events 1 | . 1 . . . Feedback Events . | . . . . . Feedback Blocked . | . . . . . Robot Schematics Acquired . | . . . . . Robots Built . | . . . . . Authchips . | . . . . . Time . | . . . . . Total Robot Build Rating . | . . . . . Part Schematics Acquired . | . . . . . Parts Built . | . . . . . Authchips . | . . . . . Time . | . . . . . Total Part Build Rating . | . . . . . Parts Repaired 5 | . 1 4 . . Time 142 | . 26 116 . . Parts Recycled . | . . . . . Recycled Matter . | . . . . . Retrieved Matter . | . . . . . Retrieved Components . | . . . . . Parts Scanalyzed . | . . . . . Part Schematics Acquired . | . . . . . Parts Damaged . | . . . . . Bothacking | -11 -10 -9 -9 -9 ------------ Run | Yrd Mat Mat Min Exi Used RIF Installer . | . . . . . Robots Hacked . | . . . . . Non-combat . | . . . . . Combat . | . . . . . Robot Hacks Applied . | . . . . . Relay Couplers Released . | . . . . . Fabnet Peak Effective % . | . . . . . Robots Rewired . | . . . . . Allies Hacked . | . . . . . Hacks Repelled . | . . . . . Allies | -11 -10 -9 -9 -9 -------- Run | Yrd Mat Mat Min Exi Total Allies . | . . . . . Largest Group . | . . . . . Highest-Rated Group . | . . . . . Highest-Rated Ally . | . . . . . Total Orders . | . . . . . Ally Attacks . | . . . . . Total Damage . | . . . . . Kills . | . . . . . Allies Corrupted . | . . . . . Allies Melted . | . . . . . Intel | -11 -10 -9 -9 -9 ------- Run | Yrd Mat Mat Min Exi Active Infowar (turns) 3068 | 1 556 2511 . . Sensors 2511 | . . 2511 . . Seismic 557 | 1 556 . . . Robot Analysis Total 8 | . 4 4 . . Derelict Logs Recovered . | . . . . . Drone Launches . | . . . . . Drone Recoveries . | . . . . . Exploration | -11 -10 -9 -9 -9 ------------- Run | Yrd Mat Mat Min Exi Turns Passed 7024 | 85 2709 3570 44 616 Spaces Moved 2310 | 39 830 1258 19 164 Core 3 | 3 . . . . Treads 2307 | 36 830 1258 19 164 Legs . | . . . . . Wheels . | . . . . . Hover . | . . . . . Flight . | . . . . . Fastest Speed 50 | 50 160 240 240 240 Average Speed 258 | 151 296 240 240 241 Slowest Speed 560 | 160 400 320 240 560 Overloaded Moves . | . . . . . Propulsion Burnouts . | . . . . . Robots Hopped . | . . . . . Potential Cave-ins . | . . . . . Cave-ins Triggered . | . . . . . Exploration Rate (%) 50 | 4 98 96 8 46 Regions Visited 4 Branch Regions 2 Pre-discovered Areas 1 | . . . . 1 Known Exits Taken . | . . . . . Unknown Exits Taken 4 | 1 1 1 1 . Scrap Searched . | . . . . . Spaces Dug . | . . . . . Terrain Destroyed 5 | . . . . 5 Melee . | . . . . . Projectile . | . . . . . AOE 5 | . . . . 5 Terrain Rammed . | . . . . . Walls Destroyed . | . . . . . Machines Disabled . | . . . . . Actions | -11 -10 -9 -9 -9 --------- Run | Yrd Mat Mat Min Exi Total 2920 | 54 967 1615 18 266 Wait 213 | . 34 165 . 14 Move 2306 | 38 829 1257 18 164 Hop . | . . . . . Pick Up 54 | 5 24 23 . 2 Fast Attach 15 | 6 4 5 . . Attach 21 | 1 . 7 . 13 Detach 2 | . 2 . . . Swap 22 | . 6 13 . 3 Drop 36 | . 6 26 . 4 Fire 217 | 4 60 116 . 37 Melee . | . . . . . Ram . | . . . . . Kick . | . . . . . Crush 34 | . 2 3 . 29 Escape Stasis . | . . . . . Rewire . | . . . . . Trap . | . . . . . Miscellaneous . | . . . . . Route ------- -11/Scrapyard -10/Materials (discovered 6 exits: *Mat x3 / [*Min x2] / [*Sub]) -9/Materials (discovered 5 exits: [*Mat x3] / [*Min x2]) -9/Mines (discovered 2 exits: *Exi / [*Zio]) -9/Exiles History --------- Turn | Location | Event 22 | -11/Scrapyard | Discovered new exit (range 16) 86 | -11/Scrapyard | Entered Materials 194 | -10/Materials | Discovered new exit (range 10) 315 | -10/Materials | Build established: Mutant 315 | -10/Materials | Discovered new exit (range 14) 437 | -10/Materials | Discovered new exit (range 6) 586 | -10/Materials | Derelicts attacked the area 1154 | -10/Materials | Discovered new exit (range 13) 1605 | -10/Materials | Discovered new exit (range 6) 1743 | -10/Materials | Repaired Lgt. Treads 2323 | -10/Materials | Central database locked down 2438 | -10/Materials | Discovered new exit (range 16) 2795 | -10/Materials | Entered another Materials area 2795 | -9/Materials | Evolved 2 slots: Propulsion x1, Utility x1 4156 | -9/Materials | Repaired Lgt. Treads 4167 | -9/Materials | Build established: Scavenger-Mutant 4427 | -9/Materials | Discovered new exit (range 16) 4554 | -9/Materials | Discovered new exit (range 11) 4885 | -9/Materials | Discovered new exit (range 8) 5593 | -9/Materials | Repaired Lgt. Treads 5626 | -9/Materials | Repaired Imp. Ion Engine 5660 | -9/Materials | Repaired Autogun 5882 | -9/Materials | Discovered new exit (range 16) 6144 | -9/Materials | Discovered new exit (range 15) 6365 | -9/Materials | Entered Mines 6366 | -9/Mines | A Derelict revealed a hidden shortcut to a safe place 6397 | -9/Mines | Deemed a non-threat by the Exiles lab entrance 6399 | -9/Mines | Discovered new exit (range 5) 6409 | -9/Mines | Entered Exiles 6477 | -9/Exiles | Met 8R-AWN 6516 | -9/Exiles | Met EX-HEX 6640 | -9/Exiles | Met EX-DEC 6657 | -9/Exiles | Learned location of Zion (-7) 6758 | -9/Exiles | Attacked by the Exiles 6807 | -9/Exiles | Core integrity fell below 50% 6848 | -9/Exiles | Lost 8 parts (1p3n1u3w) 6959 | -9/Exiles | Core integrity fell below 20% 6997 | -9/Exiles | Lost 9 parts (1p3n3u2w) 7025 | -9/Exiles | Destroyed by 8R-AWN with 8R-AWN's Boregun Last Messages --------------- 07008_ HV Slug penetrates Machine. 07008_ Penetrated by HV Slug. 07008_ HV Slug penetrates Machine. 07010_ Slammed into 8R-AWN. 07013_ Penetrated by HV Slug. 07013_ Critical hit (Destroy). 07013_ Lgt. Treads destroyed. 07013_ HV Slug penetrates Earth. 07013_ Penetrated by HV Slug. 07013_ HV Slug penetrates Earth. 07014_ Slammed into 8R-AWN. 07017_ HV Slug penetrates Wall. 07017_ Penetrated by HV Slug. 07017_ HV Slug penetrates Earth. 07018_ Slammed into 8R-AWN. 07021_ HV Slug penetrates Wall. 07021_ Penetrated by HV Slug. 07021_ HV Slug penetrates Earth. 07022_ Slammed into 8R-AWN. 07025_ Penetrated by HV Slug. Map ----- +----------------------------------------------------+ | ?????????????????????????????????????????????????? | | ?????????????????????????????????????????????????? | | ?????????????????????????????????????????????????? | | ?????????????????????????????????????????????????? | | ?????????????????????????????????????????????????? | | ?????????????????????????????????????????????????? | | ?????????????????????????????????????????????????? | | ?????????????????????????????????????????????????? | | ?????????????????????????????????????????????????? | | ?????????????????????????????????????????????????? | | ?????????????????????????????????????????????????? | | ?????????????????????????????????????????????????? | | ?????????????????????????????????????????????????? | | ????????????? ???????????????????????????????????? | | ?????????????? #?????????????????????????????????? | | ??????? ??????# #??##?#######????????????????????? | | ??????? ####### ### ?#!!! "#????????????????????? | | ?????? #""## # ## "#????????????????????? | | ??????? ?# # # "#????????????????????? | | ??????" ### #;; ""#????????????####????? | | ??????? "#;;# ""#???????????? """???? | | ???????? #; ""#????????????" """#??? | | ????????? # #;#????????????" ???? | | ???????????# # #???????????"" ???? | | ????????????### g %;#???????????"" "???? | | ????????????# ;;; @ ;#??????????? ""???? | | ????????########" ###???????????" "????? | | ????????# !!""""" ##??????????# #????? | | ????????#! ###" % #######??### ###?## | | ????????#! "#?## "### X# #"###" | | ????????#! ##??# %* % """"" | | ????????# !" """"###???# # *% %% " "" | | ????????##########?????##"# % " | | ?????????????????????????#### % | | ????????????????????????????### | | ??????????????????????????????## | | ???????????????????????????????# | | ???????????????????????????????#" % | | ???????????????????????????????? | | ????????????????????????????????# | | ????????????????????????????????? " | | ????????????????????????????????? """ | | ????????????????????????????????? """# | | ????????????????????????????????? ""# | | ????????????????????????????????? ## | | ?????????????????????????????????? ?? | | ??????????????????????????????????? ?? | | ????????????????????????????????????? ?? | | ??????????????????????????????????????? ??? | | ?????????????????????????????????????????? ???? | +----------------------------------------------------+ Best States ------------- Heat Dissipation 50 Energy Generation 12 Energy Capacity 265 Matter Stores 300 Matter Capacity 300 Sight Range 16 Robot Scan Range 14 Terrain Scan Density 10 Armor Coverage 225 Propulsion Shielding 66 Utility Shielding 33 Evasion (%) 40 Recoil Reduction 3 Item Schematics ----------------- None Robot Schematics ------------------ None Fabricated ------------ Nothing Repaired ---------- Lgt. Treads | 28% | -10/Materials Lgt. Treads | 63% | -9/Materials Lgt. Treads | 17% | -9/Materials Imp. Ion Engine | 37% | -9/Materials Autogun | 13% | -9/Materials Alien Tech Used ----------------- None Achievements -------------- None Challenges ------------ None Game ------ Seed MetafiberLayeredJetlance Manual? 0 Play Time 00:31:24 Cumulative 190.3 hours Start 2025.09.25 @ 17:31:37 End 2025.09.25 @ 17:58:28 Sessions 1 Manual Loads 0 Difficulty Rogue Special Mode None Game No. 240 Rogue 240 Adventurer 0 Explorer 0 Win Type - Total 3 Types 3/0/0/0/0/0/0/0/0/0 Lore% 70 Gallery% 55 Achievement% 54 Wizard Run 0 Options --------- Layout 1 ASCII 0 Keyboard 1 Movement Numpad Keybinds 0 Fullscreen 1 Font 24/Smallcaps Map View 50x35 Zoom Use 0% Tactical HUD 1 Map Filters NONE Filters NONE Steam 1 RUN: 90618f0c-0eb9-424d-8650-cc7c339a0379